bitfinex-derivatives/quotes_ETHF0:USTF0_20250106
["timestamp","ask_amount","ask_price","bid_price","bid_amount"]
[1736169928819,0.9276,3644.0,3643.9,0.27452]
[1736169929022,0.8842,3644.3,3644.2,0.2745]
[1736169929320,0.8842,3644.3,3644.2,0.37637248]
[1736169929815,0.8842,3644.3,3644.2,2.58056046]
[1736169930911,0.8842,3644.3,3644.2,2.47868798]
[1736169931121,0.8842,3644.3,3644.2,43.38053169]
[1736169931413,0.8842,3644.3,3644.2,43.38050708]
[1736169933317,3.2078,3644.8,3644.7,0.27446]
[1736169933518,3.21470551,3644.9,3644.8,0.27445]
[1736169933734,3.21470551,3644.9,3644.8,0.3762691]
[1736169934621,3.21470551,3644.9,3644.8,0.37615517]
[1736169934924,0.9075,3645.0,3644.8,0.10170517]
[1736169935221,0.9075,3645.0,3644.9,41.17615517]
[1736169935923,0.8707,3645.2,3645.1,0.27443]
[1736169936126,0.8707,3645.2,3645.1,2.58032315]
[1736169937524,0.8707,3645.2,3645.1,2.47861798]
[1736169937822,0.8707,3645.2,3645.1,2.58021041]
[1736169938221,3.2078,3645.3,3645.1,2.30578039]
[1736169938422,3.2078,3645.3,3645.2,0.37601241]
[1736169940128,0.9336,3645.5,3645.1,2.20418798]
[1736169940422,0.9336,3645.5,3645.4,2.47859798]
[1736169940923,0.9336,3645.5,3645.4,2.58012741]
[1736169941124,0.9336,3645.5,3645.4,0.37593943]
[1736169941318,0.9336,3645.5,3645.4,2.58012741]
[1736169943329,0.9336,3645.5,3645.4,0.37593943]
[1736169943531,0.9336,3645.5,3645.4,0.10152943]
[1736169943736,0.9336,3645.5,3645.4,0.37593943]
[1736169943933,0.9336,3645.5,3645.4,0.37587884]
[1736169944429,0.9336,3645.5,3645.4,2.58006682]
[1736169944731,3.2078,3645.8,3645.7,0.27439]
[1736169944923,3.2078,3645.8,3645.7,2.58004682]
[1736169946531,0.8691,3645.9,3645.7,2.30565682]
[1736169946734,3.2078,3646.3,3646.2,0.27435]
[1736169946934,3.2078,3646.3,3646.2,43.38000682]
[1736169947333,2.6858,3646.8,3646.2,43.10559149]
[1736169947531,2.6858,3646.8,3646.7,0.27431]
[1736169947838,2.6858,3646.8,3646.7,0.37571351]
[1736169948034,3.2078,3646.9,3646.7,0.10140351]
[1736169948335,3.2078,3646.9,3646.8,0.37570351]
[1736169949345,3.2078,3646.9,3646.8,0.3755724]
[1736169950039,3.2078,3646.9,3646.8,0.37553205]
[1736169950340,0.8745,3647.2,3647.1,0.27428]
[1736169950535,0.8745,3647.2,3647.1,2.57970003]
[1736169951029,0.9273,3647.4,3647.1,2.30542003]
[1736169951232,3.2078,3647.6,3647.5,0.27425]
[1736169951433,3.2078,3647.6,3647.5,43.37967003]
[1736169952632,3.2078,3648.0,3647.9,0.27422]
[1736169952840,3.2078,3648.0,3647.9,2.57964003]
[1736169953032,3.2078,3648.6,3647.9,4.50943725]
[1736169953244,3.2078,3648.6,3648.5,2.47836798]
[1736169953435,3.2078,3648.6,3648.5,2.57942927]
[1736169953832,3.2078,3648.6,3648.5,43.37942927]
[1736169954037,0.8785,3648.9,3648.8,0.27415]
[1736169954235,0.8785,3648.9,3648.8,2.47833798]
[1736169954945,0.8785,3648.9,3648.8,2.57923138]
[1736169955442,0.8785,3648.9,3648.8,0.10083733]
[1736169955742,0.8785,3648.9,3648.5,2.20418798]
[1736169955938,3.2078,3648.8,3648.7,0.27416]
[1736169956240,3.2078,3648.8,3648.5,2.20418798]
[1736169956438,4.1677,3648.8,3648.5,2.20418798]
[1736169956638,4.1677,3648.8,3648.2,2.20418798]
[1736169956939,3.2078,3648.4,3647.4,2.20418798]
[1736169957142,0.27425,3647.5,3647.4,2.20418798]
[1736169957340,0.27425,3647.5,3647.4,2.47844798]
[1736169957644,0.8974,3647.8,3647.4,2.20418798]
[1736169957939,0.27425,3647.5,3647.4,2.20418798]
[1736169958139,3.48205,3647.5,3647.4,2.47844798]
[1736169958338,3.48205,3647.5,3647.4,2.20418798]
[1736169959239,3.2078,3647.5,3647.4,2.47844798]
[1736169960643,3.2078,3647.5,3647.4,43.27844798]
[1736169961641,3.48205,3647.5,3647.4,43.27844798]
[1736169961845,3.2078,3647.5,3647.4,43.27844798]
[1736169962047,3.48205,3647.5,3647.4,43.00418798]
[1736169963947,3.2078,3647.5,3647.4,43.27844798]
[1736169964954,3.48205,3647.5,3647.4,43.00418798]
[1736169967049,3.2078,3647.5,3647.4,43.00418798]
[1736169967245,0.9224,3648.2,3647.4,43.00418798]
[1736169967452,3.2078,3648.3,3648.2,0.2742]
[1736169968050,3.2078,3648.3,3647.5,2.20418798]
[1736169968255,0.27422,3647.9,3647.8,0.27423]
[1736169968450,0.9246,3648.2,3647.8,0.27423]
[1736169968653,3.48202,3647.9,3647.8,0.27423]
[1736169969152,0.27424,3647.7,3647.6,40.8]
[1736169970050,3.2078,3647.9,3647.5,0.27425]
[1736169970250,0.27424,3647.6,3647.5,0.27425]
[1736169972050,1.8939,3647.8,3646.9,2.20418798]
[1736169972347,0.2743,3646.9,3646.8,0.2743]
[1736169972556,0.2743,3646.9,3646.8,41.0743]
[1736169972949,0.68575,3646.9,3646.4,0.27432]
[1736169973156,0.27433,3646.5,3646.4,0.27432]
[1736169973357,1.8939,3646.8,3646.3,2.20418798]
[1736169973358,0.27431,3646.7,3646.6,0.27431]
[1736169975358,0.27433,3646.6,3646.5,0.27432]
[1736169975561,1.8939,3646.8,3646.3,43.00418798]
[1736169975763,0.27433,3646.6,3646.5,0.27432]
[1736169977063,3.2078,3646.6,3646.3,43.00418798]
[1736169977258,0.27433,3646.4,3646.3,43.27851798]
[1736169977660,0.27433,3646.4,3646.3,40.8]
[1736169977965,0.27433,3646.4,3646.3,41.07434]
[1736169978159,0.27433,3646.4,3646.3,40.8]
[1736169978558,0.9554,3646.5,3646.0,2.20418798]
[1736169978764,4.3038,3646.6,3646.0,2.20418798]
[1736169978966,0.27434,3646.4,3646.3,0.27433]
[1736169979172,0.27433,3646.5,3646.4,0.27433]
[1736169979963,3.2078,3646.6,3646.5,0.27433]
[1736169980169,3.2078,3646.6,3646.5,41.07433]
[1736169980368,3.48212,3646.6,3646.5,41.07433]
[1736169980972,3.48212,3646.6,3646.5,40.8]
[1736169982375,0.27433,3646.4,3646.3,0.27434]
[1736169982764,0.27433,3646.4,3646.3,40.8]
[1736169983179,3.2078,3646.6,3645.7,3.07128798]
[1736169983180,3.2078,3646.6,3645.9,0.27437]
[1736169983475,0.27438,3645.8,3645.7,0.27438]
[1736169983778,0.27438,3645.8,3645.7,41.07438]
[1736169983973,2.11228,3645.9,3645.8,0.27438]
[1736169984274,1.8379,3645.9,3645.8,0.27438]
[1736169984475,3.2078,3646.0,3645.9,0.27437]
[1736169984774,0.27436,3646.2,3646.1,0.27435]
[1736169984964,0.27432,3646.6,3646.4,0.27433]
[1736169985168,0.27432,3646.6,3646.5,0.27433]
[1736169985370,3.2078,3646.8,3646.5,0.27433]
[1736169985575,0.27433,3646.6,3646.5,0.27433]
[1736169985767,0.27433,3646.6,3646.5,41.07433]
[1736169986173,3.2078,3646.8,3646.5,40.8]
[1736169986379,0.27432,3646.7,3646.6,0.27431]
[1736169988076,3.2078,3646.8,3646.7,0.27431]
[1736169988279,3.2078,3646.8,3646.7,2.47849798]
[1736169988877,3.4821,3646.8,3646.7,2.47849798]
[1736169989078,3.2078,3646.8,3646.7,2.47849798]
[1736169992377,3.4821,3646.8,3646.7,0.27431]
[1736169992681,0.27433,3646.5,3646.4,0.27433]
[1736169992884,0.27432,3646.6,3646.5,0.27431]
[1736169993190,3.2078,3646.8,3646.7,0.27431]
[1736169993387,3.2078,3646.8,3646.7,2.47849798]
[1736169993582,3.21172189,3646.8,3646.7,2.47849798]
[1736169998286,3.21172189,3646.8,3646.5,40.8]
[1736169998486,0.9312,3646.7,3646.5,40.8]
[1736169998992,1.20551,3646.7,3646.6,0.27432]
[1736169999795,1.20551,3646.7,3646.5,40.8]
[1736169999796,0.27432,3646.6,3646.5,41.07432]
[1736169999993,1.18252,3646.6,3646.5,41.07433]
[1736170001282,0.9082,3646.6,3646.5,41.07433]
[1736170004417,1.18252,3646.6,3646.5,41.07433]
[1736170005011,1.18252,3646.6,3646.5,40.8]
[1736170005213,0.9082,3646.6,3646.3,0.27434]
[1736170005410,0.27433,3646.4,3646.3,0.27434]
[1736170005809,0.27433,3646.4,3646.3,41.07434]
[1736170006004,0.27433,3646.5,3646.4,0.27433]
[1736170006195,0.9082,3646.6,3646.3,40.8]
[1736170006402,0.9082,3646.6,3646.5,0.27433]
[1736170007792,1.18252,3646.6,3646.5,0.27433]
[1736170008091,0.9082,3646.6,3646.5,0.27433]
[1736170010792,1.18252,3646.6,3646.5,0.27433]
[1736170011093,0.9082,3646.6,3646.5,0.27433]
[1736170011495,1.18252,3646.6,3646.5,0.27433]
[1736170011691,0.9082,3646.6,3646.0,3.2078]
[1736170011897,0.27436,3646.2,3646.1,0.27435]
[1736170012196,0.27436,3646.2,3646.1,41.07435]
[1736170012392,0.27435,3646.4,3646.3,0.27433]
[1736170014894,0.27435,3646.4,3646.3,41.07433]
[1736170015491,0.27435,3646.4,3646.3,43.27851798]
[1736170017590,3.21470551,3646.5,3646.4,0.27433]
[1736170019101,3.48903551,3646.5,3646.4,0.27433]
[1736170019303,4.12290551,3646.6,3646.3,44.84348798]
[1736170019597,4.12290551,3646.6,3646.5,0.27433]
[1736170020595,0.9082,3646.6,3646.5,0.27433]
[1736170020999,6.7007374,3646.8,3646.7,0.27431]
[1736170021000,6.4264274,3646.8,3646.7,0.27431]
[1736170021202,6.4264274,3646.8,3646.7,2.47849798]
[1736170022202,6.8379563,3646.8,3646.7,2.47849798]
[1736170023701,3.21172189,3646.8,3646.7,2.47849798]
[1736170025305,3.48602189,3646.8,3646.7,2.47849798]
[1736170025909,0.27822189,3646.8,3646.7,2.47849798]
[1736170026103,0.27433,3646.6,3646.5,0.27432]
[1736170028506,1.18093,3646.6,3646.5,0.27432]
[1736170028899,4.80719509,3646.6,3646.5,0.27432]
[1736170029907,3.90059509,3646.6,3646.5,0.27432]
[1736170031310,0.68588958,3646.6,3646.5,0.27432]
[1736170031809,0.68587958,3646.6,3646.5,0.27432]
[1736170032607,0.27432,3646.6,3646.5,0.27432]
[1736170034208,0.68587958,3646.6,3646.5,0.27432]
[1736170035105,0.68587958,3646.6,3646.5,41.07432]
[1736170035903,0.27434,3646.4,3646.3,0.27433]
[1736170036511,1.22354,3646.4,3646.3,0.27433]
[1736170038913,4.44130597,3646.4,3646.3,0.27433]
[1736170039711,5.34000597,3646.4,3646.3,0.27433]
[1736170040316,2.5338094,3646.4,3646.3,0.27433]
[1736170040511,1.6350994,3646.4,3646.3,0.27433]
[1736170041811,1.22353,3646.4,3646.3,0.27433]
[1736170042316,5.5892112,3646.6,3646.5,0.27433]
[1736170042317,4.6975112,3646.6,3646.5,0.27433]
[1736170042523,4.6975112,3646.6,3646.5,2.47851798]
[1736170042710,4.6975112,3646.6,3646.5,43.27851798]
[1736170042911,7.77197369,3646.8,3646.7,0.27431]
[1736170044310,8.18350462,3646.8,3646.7,0.27431]
[1736170045610,3.89756282,3646.8,3646.7,0.27431]
[1736170046214,0.27431,3646.7,3646.6,4.59091184]
[1736170046610,0.27431,3646.7,3646.6,45.39091184]
[1736170046811,0.27431,3646.7,3646.6,41.07431]
[1736170048117,6.43204834,3646.8,3646.6,45.11660184]
[1736170048319,6.70635834,3646.8,3646.7,0.27431]
[1736170049413,0.27431,3646.7,3646.6,40.8]
[1736170049712,0.27431,3646.7,3646.6,41.07432]
[1736170050519,4.97179943,3646.7,3646.6,41.07432]
[1736170051211,0.68585763,3646.7,3646.6,41.07432]
[1736170054423,0.41154763,3646.7,3646.6,41.07432]
[1736170054923,0.41154763,3646.7,3646.6,42.00762]
[1736170057323,5.63233071,3646.8,3646.7,0.27431]
[1736170057726,0.27431,3646.7,3646.6,6.48174427]
[1736170057916,2.10811,3646.7,3646.6,6.75606427]
[1736170058528,2.10811,3646.7,3646.6,0.27432]
[1736170059524,0.27432,3646.6,3646.5,43.27850798]
[1736170059722,0.27432,3646.6,3646.5,2.47850798]
[1736170060031,0.27432,3646.6,3646.5,2.20418798]
[1736170060619,0.27433,3646.5,3646.4,0.27433]
[1736170061627,3.9051508,3646.5,3646.4,0.27433]
[1736170062426,0.27433,3646.4,3646.3,4.58927369]
[1736170062627,1.18693,3646.4,3646.3,4.58927369]
[1736170063126,1.18693,3646.4,3646.3,45.38927369]
[1736170063722,4.39473,3646.4,3646.3,45.11493369]
[1736170064025,8.0255508,3646.4,3646.3,40.8]
[1736170065123,4.80628607,3646.4,3646.3,40.8]
[1736170066729,9.09668992,3646.4,3646.3,40.8]
[1736170067532,8.82235992,3646.4,3646.0,4.58976362]
[1736170067729,0.27436,3646.1,3646.0,4.31540362]
[1736170068031,0.27436,3646.0,3645.9,2.47855798]
[1736170068220,1.13226,3646.0,3645.9,2.47855798]
[1736170068620,1.13226,3646.0,3645.9,43.27855798]
[1736170069231,4.76106479,3646.0,3645.9,43.27855798]
[1736170070830,3.62880479,3646.0,3645.9,43.27855798]
[1736170071125,3.90316479,3646.0,3645.9,43.27855798]
[1736170073225,0.68591607,3646.0,3645.9,43.27855798]
[1736170073425,0.41155607,3646.0,3645.9,43.27855798]
[1736170074730,3.62880479,3646.2,3645.9,46.8907119]
[1736170074929,3.62880479,3646.2,3646.1,0.27436]
[1736170075335,4.29040385,3646.7,3646.1,5.852]
[1736170075535,4.29040385,3646.7,3646.6,2.47850798]
[1736170076026,4.29040385,3646.7,3646.6,43.27850798]
[1736170076333,3.21667097,3646.7,3646.6,43.27850798]
[1736170076741,2.82998451,3646.7,3646.6,43.27850798]
[1736170076936,0.00392189,3646.8,3646.6,43.00418798]
[1736170077237,4.29040385,3647.1,3646.6,43.00418798]
[1736170077238,4.29040385,3647.1,3647.0,0.27429]
[1736170077437,4.29040385,3647.1,3647.0,5.68627798]
[1736170077626,4.29040385,3647.5,3647.4,0.27426]
[1736170077831,4.29040385,3647.5,3647.4,43.27844798]
[1736170079826,2.14426955,3647.8,3647.4,47.1649719]
[1736170080140,2.14426955,3647.8,3647.7,2.47842798]
[1736170081135,5.35206955,3647.9,3647.7,2.20418798]
[1736170081438,5.35206955,3647.9,3647.8,0.27423]
[1736170081627,5.35206955,3647.9,3647.8,1.09603]
[1736170083038,3.2078,3647.9,3647.8,5.39818327]
[1736170083426,0.8241,3648.1,3647.8,5.12395327]
[1736170083631,0.8241,3648.1,3648.0,2.47839798]
[1736170084340,0.8241,3648.1,3647.8,4.30215327]
[1736170084537,0.27422,3647.9,3647.8,4.57638327]
[1736170085031,0.8241,3648.1,3647.8,4.30215327]
[1736170085337,0.8241,3648.1,3648.0,2.47839798]
[1736170087138,0.8241,3648.1,3648.0,43.27839798]
[1736170088134,0.8241,3648.1,3648.0,41.07421]
[1736170088340,1.09831,3648.1,3648.0,41.07421]
[1736170088537,0.8241,3648.1,3648.0,41.07421]
[1736170088735,1.09831,3648.1,3648.0,41.07421]
[1736170088936,0.8241,3648.1,3647.8,4.30215327]
[1736170089139,0.8241,3648.1,3648.0,0.27421]
[1736170089140,1.09831,3648.1,3648.0,0.27421]
[1736170089341,0.8241,3648.1,3648.0,41.07421]
[1736170089942,0.27422,3647.9,3647.8,4.30215327]
[1736170090143,0.27422,3647.9,3647.8,0.27423]
[1736170090644,0.27422,3647.9,3647.8,41.07423]
[1736170091342,0.27423,3647.8,3647.7,0.27423]
[1736170091538,0.8053,3647.8,3647.4,2.20418798]
[1736170091733,0.27425,3647.6,3647.5,0.27425]
[1736170091936,0.27425,3647.6,3647.5,41.07425]
[1736170092242,1.8963,3647.8,3647.1,4.57643327]
[1736170092445,0.27427,3647.2,3647.1,4.57643327]
[1736170092633,0.27427,3647.2,3647.1,45.37643327]
[1736170093042,0.27427,3647.2,3647.1,41.07428]
[1736170093243,1.09447,3647.2,3647.1,41.07428]
[1736170094643,0.8202,3647.2,3647.1,41.07428]
[1736170094946,1.09447,3647.2,3647.1,41.07428]
[1736170095946,0.784,3647.3,3647.2,0.27427]
[1736170096434,0.784,3647.3,3647.2,1.07407]
[1736170097043,0.784,3647.3,3647.2,0.27427]
[1736170098548,1.05827,3647.3,3647.2,0.27427]
[1736170099347,0.784,3647.3,3647.2,0.27427]
[1736170103345,0.27427,3647.2,3647.1,41.07427]
[1736170103945,0.27427,3647.2,3647.1,40.8]
[1736170104142,0.2743,3647.0,3646.9,0.27429]
[1736170104340,3.4821,3647.0,3646.9,0.27429]
[1736170104548,3.4821,3647.0,3646.9,41.07429]
[1736170106643,3.4821,3647.0,3646.9,0.27429]
[1736170107241,3.4821,3647.0,3646.9,41.07429]
[1736170114264,0.27432,3646.8,3646.7,0.2743]
[1736170114661,0.27432,3646.8,3646.7,41.0743]
[1736170115766,0.2743,3646.9,3646.8,0.2743]
[1736170117668,3.2078,3647.0,3646.7,40.8]
[1736170117669,0.2743,3646.8,3646.7,41.07431]
[1736170117874,1.0646,3646.8,3646.7,41.07431]
[1736170118069,1.0646,3646.8,3646.7,0.27431]
[1736170121475,0.7903,3646.8,3646.7,0.27431]
[1736170121662,1.07049,3647.1,3647.0,0.27429]
[1736170122271,3.21475955,3647.1,3647.0,41.07429]
[1736170123879,1.07049,3647.1,3647.0,41.07429]
[1736170127275,1.07049,3647.1,3647.0,0.27429]
[1736170128376,4.27829,3647.1,3647.0,0.27429]
[1736170128780,3.2078,3647.1,3647.0,0.27429]
[1736170131882,3.2078,3647.1,3647.0,4.57644327]
[1736170132986,4.26607,3647.3,3647.2,0.27427]
[1736170136690,1.05827,3647.3,3647.2,0.27427]
[1736170136986,4.26607,3647.3,3647.2,0.27427]
[1736170137184,1.05827,3647.3,3647.2,0.27427]
[1736170137384,4.26607,3647.3,3647.2,0.27427]
[1736170138483,3.9918,3647.3,3647.2,2.47845798]
[1736170138689,3.2078,3647.3,3647.2,2.47845798]
[1736170139189,3.2078,3647.3,3647.2,6.64525674]
[1736170140783,3.2078,3647.3,3647.2,4.44106876]
[1736170140993,4.26277,3647.3,3647.2,4.44106876]
[1736170143896,4.26277,3647.3,3647.2,0.27427]
[1736170146187,1.05497,3647.3,3647.2,0.27427]
[1736170146498,1.05497,3647.3,3647.2,4.44165531]
[1736170147900,1.05497,3647.3,3647.2,10.91031937]
[1736170147901,6.4088776,3647.3,3647.2,10.91031937]
[1736170148594,6.4088776,3647.3,3647.2,9.34334937]
[1736170149547,4.26277,3647.3,3647.2,2.87468531]
[1736170150927,4.26277,3647.3,3647.2,3.14895531]
[1736170151131,3.61931001,3647.3,3647.2,2.47845798]
[1736170151433,3.61931001,3647.3,3647.2,3.27605798]
[1736170151833,3.61931001,3647.3,3647.2,1.07187]
[1736170152031,3.61931001,3647.3,3647.2,41.87187]
[1736170152449,3.2078,3647.3,3647.2,41.87187]
[1736170155630,3.48207,3647.3,3647.2,41.87187]
[1736170155826,3.2078,3647.3,3647.2,41.87187]
[1736170157027,3.2078,3647.3,3647.2,41.07427]
[1736170157228,5.62873906,3647.3,3647.2,47.54324086]
[1736170158705,3.48207,3647.3,3647.2,45.38717242]
[1736170162809,7.11356586,3647.3,3647.2,45.38717242]
[1736170164406,3.48207,3647.3,3647.2,41.07427]
[1736170166707,3.2078,3647.3,3647.2,41.91547]
[1736170167403,3.2078,3647.3,3647.2,48.38444086]
[1736170168709,5.35449412,3647.3,3647.2,41.91547]
[1736170168916,5.35449412,3647.3,3647.2,41.07427]
[1736170169213,5.62876412,3647.3,3647.2,41.07427]
[1736170170214,3.48207,3647.3,3647.2,45.2106665]
[1736170171615,3.48207,3647.3,3647.2,51.68278794]
[1736170172712,5.62898348,3647.3,3647.2,45.2106665]
[1736170174314,0.27427,3647.3,3647.2,45.2106665]
[1736170175922,0.27427,3647.3,3647.2,51.68409976]
[1736170177729,1.26706541,3647.3,3647.2,10.60982976]
[1736170177918,0.27427,3647.3,3647.2,10.60982976]
[1736170178122,0.27427,3647.3,3647.2,10.88409976]
[1736170178725,3.90576667,3647.3,3647.2,4.4106665]
[1736170179624,3.63149667,3647.3,3647.2,4.4106665]
[1736170179828,3.63149667,3647.3,3647.2,5.2040665]
[1736170180329,3.2078,3647.4,3647.2,45.7297965]
[1736170180528,3.48206,3647.4,3647.3,0.27427]
[1736170181220,3.48206,3647.4,3647.3,41.07427]
[1736170181627,3.2078,3647.4,3647.3,42.06706541]
[1736170181931,3.48206,3647.4,3647.3,42.06706541]
[1736170182128,3.48206,3647.4,3647.3,46.20346191]
[1736170182932,3.48206,3647.4,3647.3,45.2106665]
[1736170183736,5.6282183,3647.4,3647.3,45.2106665]
[1736170184734,5.3539583,3647.4,3647.3,45.2106665]
[1736170186435,5.3539583,3647.4,3647.3,46.20346191]
[1736170187934,3.2078,3647.4,3647.3,42.06706541]
[1736170189138,5.35368444,3647.4,3647.3,46.20339858]
[1736170190138,5.62794444,3647.4,3647.3,45.21060317]
[1736170190342,5.35368444,3647.4,3647.3,45.21060317]
[1736170190730,5.62794444,3647.4,3647.3,45.21060317]
[1736170190931,6.62073985,3647.4,3647.3,45.21060317]
[1736170191326,5.62794444,3647.4,3647.3,45.21060317]
[1736170192535,3.48206,3647.4,3647.3,51.68211088]
[1736170193538,3.48206,3647.4,3647.3,45.21060317]
[1736170195038,6.70088667,3647.4,3647.3,45.21060317]
[1736170195641,6.70088667,3647.4,3647.3,44.93633317]
[1736170196336,7.11235591,3647.4,3647.3,44.93633317]
[1736170196940,7.11235591,3647.4,3647.3,45.21060317]
[1736170197539,7.11235591,3647.4,3647.3,44.93633317]
[1736170197744,7.11235591,3647.4,3647.3,45.21060317]
[1736170198446,7.11235591,3647.4,3647.3,44.93633317]
[1736170199337,3.61926924,3647.4,3647.2,4.31557454]
[1736170199546,1.26706541,3647.3,3647.2,4.31557454]
[1736170200645,1.26706541,3647.3,3647.2,4.58984454]
[1736170200846,1.26706541,3647.3,3647.2,4.31557454]
[1736170201046,0.27427,3647.2,3647.1,4.58985454]
[1736170201341,1.06757,3647.2,3647.1,4.58985454]
[1736170201544,0.41146924,3647.3,3647.1,4.31557454]
[1736170201747,0.41146924,3647.3,3647.2,1.26706541]
[1736170202044,0.41146924,3647.3,3647.2,42.86426541]
[1736170202640,7.49956889,3647.4,3647.2,42.86426541]
[1736170202641,7.69190722,3647.4,3647.3,0.27427]
[1736170203644,0.27427,3647.3,3647.2,51.68272641]
[1736170204044,6.42485181,3647.4,3647.2,52.40125182]
[1736170204241,3.62852865,3647.4,3647.3,0.27427]
[1736170204446,3.62852865,3647.4,3647.3,5.13457]
[1736170204750,0.51442865,3647.4,3647.3,10.13457]
[1736170205055,4.29176889,3647.7,3647.6,0.27424]
[1736170205252,4.29176889,3647.7,3647.6,1.26703541]
[1736170205542,3.2078,3647.8,3647.6,1.26703541]
[1736170205543,2.14500026,3647.8,3647.7,0.27424]
[1736170206950,2.14500026,3647.9,3647.8,0.27423]
[1736170207147,2.94830026,3647.9,3647.8,0.27423]
[1736170207645,0.27423,3647.8,3647.7,4.13600207]
[1736170207856,5.11333,3647.8,3647.7,4.13600207]
[1736170208147,5.11333,3647.8,3647.6,8.62617198]
[1736170208148,4.8391,3647.8,3647.5,8.62617198]
[1736170208349,0.27424,3647.6,3647.5,8.62617198]
[1736170209244,9.13086889,3647.8,3647.4,0.27425]
[1736170209442,0.27425,3647.5,3647.4,0.27425]
[1736170210047,9.13086889,3647.8,3647.4,2.19909169]
[1736170210351,9.13086889,3647.8,3647.7,0.27424]
[1736170210551,4.8391,3647.8,3647.7,0.27424]
[1736170210757,3.2078,3647.8,3647.7,0.27424]
[1736170211348,3.2078,3647.8,3647.7,43.27333169]
[1736170211852,5.3520047,3647.8,3647.7,51.76769969]
[1736170213052,3.2078,3647.8,3647.7,45.29872185]
[1736170213449,3.2078,3647.8,3647.7,47.49781354]
[1736170213650,2.1442047,3648.0,3647.9,0.27422]
[1736170214353,2.1442047,3648.1,3647.8,0.3281]
[1736170214550,2.1442047,3648.1,3648.0,2.47330169]
[1736170215145,2.1442047,3648.1,3648.0,0.27421]
[1736170215350,2.4184147,3648.1,3648.0,0.27421]
[1736170215557,0.27421,3648.1,3648.0,10.96218351]
[1736170216057,3.56230169,3648.1,3648.0,8.09627351]
[1736170216956,0.27424,3647.6,3647.5,4.3089926]
[1736170217151,3.48204,3647.6,3647.5,4.3089926]
[1736170217447,3.48204,3647.6,3647.0,8.62617198]
[1736170217448,0.27428,3647.1,3647.0,8.62617198]
[1736170217649,6.77017169,3647.1,3647.0,8.62617198]
[1736170218053,4.57108,3647.1,3647.0,8.62617198]
[1736170218447,4.57108,3647.1,3646.8,0.2743]
[1736170218448,0.2743,3646.9,3646.8,0.2743]
[1736170218851,4.2968,3647.1,3647.0,0.27429]
[1736170219052,3.2078,3647.1,3647.0,0.27429]
[1736170220252,3.2078,3647.1,3647.0,1.11589]
[1736170220448,3.2078,3647.1,3647.0,41.91589]
[1736170220846,2.14273352,3647.7,3647.0,45.69049189]
[1736170221052,2.14273352,3647.7,3647.6,0.27424]
[1736170221561,2.14273352,3647.7,3647.6,2.47333169]
[1736170222152,2.14273352,3648.1,3648.0,0.27421]
[1736170223658,3.23763352,3648.2,3648.1,0.27421]
[1736170223958,2.96343352,3648.2,3648.1,0.27421]
[1736170224855,0.8207,3648.2,3648.1,0.27421]
[1736170225658,1.0949,3648.2,3648.1,0.27421]
[1736170226066,0.8207,3648.2,3647.6,2.88471169]
[1736170226255,0.27421,3648.1,3648.0,0.27421]
[1736170227663,1.0949,3648.2,3648.1,0.27421]
[1736170228057,0.8207,3648.2,3648.1,0.27421]
[1736170228261,2.96374057,3648.2,3648.1,0.27421]
[1736170229058,3.23794057,3648.2,3648.1,0.27421]
[1736170229756,1.0949,3648.2,3648.1,0.27421]
[1736170230961,0.27423,3647.9,3647.8,0.27422]
[1736170231157,0.8519,3648.1,3647.3,14.03306367]
[1736170231363,0.27425,3647.7,3647.6,0.27424]
[1736170231666,0.27425,3647.7,3647.2,8.62617198]
[1736170231667,0.27426,3647.5,3647.4,0.27425]
[1736170231963,0.27425,3647.6,3647.5,0.27424]
[1736170232859,2.14304057,3647.7,3647.6,0.27424]
[1736170233159,2.41728057,3647.7,3647.6,0.27424]
[1736170234064,2.14304057,3647.7,3647.6,0.27424]
[1736170234265,0.8367,3647.8,3647.7,0.27424]
[1736170234766,2.41727057,3647.9,3647.3,2.88475169]
[1736170234962,2.41727057,3647.9,3647.8,0.27423]
[1736170235960,0.27423,3647.9,3647.8,0.27423]
[1736170236163,7.06194057,3648.1,3647.5,0.68564]
[1736170236467,7.33615057,3648.1,3648.0,0.27421]
[1736170237061,7.33615057,3648.1,3648.0,41.07421]
[1736170237262,7.06194057,3648.1,3648.0,41.07421]
[1736170237461,5.35084057,3648.1,3648.0,41.07421]
[1736170239263,3.2078,3648.1,3648.0,41.07421]
[1736170242069,5.35084057,3648.1,3648.0,41.07421]
[1736170244871,3.2078,3648.1,3648.0,41.07421]
[1736170245080,2.14304057,3648.3,3648.0,40.8]
[1736170245275,2.14304057,3648.3,3648.2,2.47329169]
[1736170246269,2.14304057,3648.4,3648.2,2.19909169]
[1736170246576,2.14304057,3648.4,3648.3,0.27419]
[1736170246772,2.14304057,3648.4,3648.3,1.13759]
[1736170248072,5.35084057,3648.5,3648.3,0.8634]
[1736170248377,5.35084057,3648.5,3648.4,0.27418]
[1736170248575,2.14304057,3648.5,3648.4,0.27418]
[1736170249470,1.77254797,3648.5,3648.4,0.27418]
[1736170249675,1.27254797,3648.5,3648.4,0.27418]
[1736170249978,0.77254797,3648.5,3648.4,0.27418]
[1736170250178,4.26834,3649.0,3648.3,1.634]
[1736170250179,0.77254797,3648.7,3648.6,0.27417]
[1736170251272,4.26834,3649.0,3648.6,0.27417]
[1736170251473,4.26834,3649.0,3648.9,0.27415]
[1736170252879,3.9942,3649.0,3648.9,0.27415]
[1736170253480,3.9942,3649.0,3648.9,1.11095]
[1736170254384,3.9942,3649.0,3648.9,41.91095]
[1736170254882,3.9942,3649.0,3648.9,41.07415]
[1736170255176,0.27417,3648.8,3648.7,0.27416]
[1736170256681,0.27415,3648.9,3648.8,0.27415]
[1736170257183,4.26834,3649.0,3648.9,0.27415]
[1736170257379,3.9942,3649.0,3648.9,0.27415]
[1736170258077,3.9942,3649.0,3648.9,1.10255]
[1736170263784,3.9942,3649.0,3648.5,42.99909169]
[1736170263976,0.27416,3648.8,3648.7,0.27415]
[1736170264179,0.27415,3648.9,3648.8,0.27415]
[1736170264587,3.9942,3649.0,3648.5,42.99909169]